bitfinex-derivatives/quotes_BTCF0:USTF0_20250711
["timestamp","ask_amount","ask_price","bid_price","bid_amount"]
[1752207601202,0.30882662,116690.0,116680.0,0.40796131]
[1752207601395,0.98970793,116690.0,116680.0,0.025]
[1752207601599,0.98970793,116690.0,116680.0,0.002]
[1752207604205,0.98970793,116690.0,116660.0,0.05459]
[1752207604206,0.1926521,116670.0,116660.0,0.05459]
[1752207604507,0.5846821,116670.0,116660.0,0.64207]
[1752207604700,0.6473821,116670.0,116660.0,0.64207]
[1752207605303,0.6473821,116670.0,116660.0,0.64507]
[1752207605504,0.6473821,116670.0,116660.0,0.64907]
[1752207605706,0.6473821,116670.0,116660.0,0.8204668]
[1752207605905,0.6473821,116670.0,116660.0,0.55306811]
[1752207606105,0.6473821,116670.0,116660.0,0.96915131]
[1752207608405,0.6473821,116670.0,116660.0,0.38167131]
[1752207608902,0.6473821,116670.0,116660.0,0.96915131]
[1752207610508,0.6480221,116670.0,116660.0,0.96915131]
[1752207610903,0.6480221,116670.0,116660.0,0.38167131]
[1752207611104,0.6480221,116670.0,116660.0,0.96915131]
[1752207611812,0.96810341,116670.0,116660.0,0.06159]
[1752207612006,0.96810341,116670.0,116660.0,0.64907]
[1752207612907,0.6480221,116670.0,116660.0,0.64907]
[1752207613107,0.6480221,116670.0,116660.0,0.38167131]
[1752207613307,0.6480221,116670.0,116660.0,0.96919131]
[1752207614004,0.6157221,116670.0,116660.0,1.15849542]
[1752207614211,0.6157221,116670.0,116660.0,1.18949542]
[1752207614512,0.6157221,116670.0,116660.0,1.01809872]
[1752207615507,0.6157221,116670.0,116660.0,1.18949552]
[1752207617915,0.6157221,116670.0,116660.0,1.01809872]
[1752207618709,0.93580341,116670.0,116660.0,0.07949741]
[1752207619014,0.96630341,116670.0,116660.0,0.06159]
[1752207619206,0.96630341,116670.0,116660.0,0.02941]
[1752207620710,0.96630341,116670.0,116660.0,0.06159]
[1752207622914,0.6462221,116670.0,116660.0,0.06159]
[1752207623413,0.96630341,116670.0,116660.0,0.06159]
[1752207624916,0.6462221,116670.0,116660.0,0.06159]
[1752207630124,0.6462221,116670.0,116660.0,0.02941]
[1752207631720,0.96630341,116670.0,116660.0,0.02941]
[1752207632725,0.96630341,116670.0,116660.0,0.007]
[1752207634626,0.6462221,116670.0,116660.0,0.007]
[1752207634823,0.96630341,116670.0,116660.0,0.007]
[1752207638622,0.6462221,116670.0,116660.0,0.007]
[1752207638822,0.96630341,116670.0,116660.0,0.007]
[1752207639322,0.2226871,116660.0,116650.0,0.07779775]
[1752207639523,0.1923418,116650.0,116640.0,0.13452782]
[1752207639723,0.96648311,116650.0,116640.0,0.08835157]
[1752207639922,0.96712311,116650.0,116640.0,0.08835157]
[1752207640323,0.96712311,116650.0,116640.0,0.09818964]
[1752207640725,0.96712311,116650.0,116640.0,0.10418964]
[1752207641728,0.96712311,116650.0,116640.0,0.10918964]
[1752207644530,0.96712311,116650.0,116640.0,0.10418964]
[1752207644827,0.96912311,116650.0,116640.0,0.09818964]
[1752207649827,0.9869114,116650.0,116640.0,0.09818964]
[1752207651844,0.66683009,116650.0,116640.0,0.43983095]
[1752207652044,0.66683009,116650.0,116640.0,0.47233095]
[1752207652246,0.66683009,116650.0,116640.0,0.50433095]
[1752207653840,0.66683009,116650.0,116640.0,0.18424964]
[1752207655744,0.66683009,116650.0,116640.0,0.35567614]
[1752207655943,0.30603009,116650.0,116640.0,0.18424964]
[1752207656246,0.66683009,116650.0,116640.0,0.50433095]
[1752207659147,0.6490418,116650.0,116640.0,0.50433095]
[1752207659347,0.66682463,116650.0,116640.0,0.50433095]
[1752207661144,0.66682463,116650.0,116640.0,0.67575745]
[1752207661649,0.66682463,116650.0,116640.0,0.50433095]
[1752207662850,0.907006,116650.0,116640.0,0.66461238]
[1752207663047,0.66682463,116650.0,116640.0,0.83603888]
[1752207663247,0.5462126,116650.0,116640.0,0.83603888]
[1752207663545,0.9070126,116650.0,116640.0,0.83603888]
[1752207664050,0.9070126,116650.0,116640.0,0.66461238]
[1752207665154,0.9070126,116650.0,116640.0,0.83603888]
[1752207666250,0.5462126,116650.0,116640.0,0.81843884]
[1752207666452,0.9070126,116650.0,116640.0,0.81843884]
[1752207666856,0.5462126,116650.0,116640.0,0.81843884]
[1752207667058,0.9070126,116650.0,116640.0,0.64701234]
[1752207667553,0.9090126,116650.0,116640.0,0.64701234]
[1752207668360,0.5482126,116650.0,116640.0,0.66455823]
[1752207669357,0.9090126,116650.0,116640.0,0.71068858]
[1752207669554,0.9090126,116650.0,116640.0,0.66455823]
[1752207669754,0.9070126,116650.0,116640.0,0.66555823]
[1752207671356,0.9050126,116650.0,116640.0,0.66555823]
[1752207673349,0.9050126,116650.0,116640.0,1.25291823]
[1752207673555,0.9050126,116650.0,116640.0,1.42434463]
[1752207674252,0.9050126,116650.0,116640.0,1.25291823]
[1752207674450,0.9050126,116650.0,116640.0,1.42434463]
[1752207674753,0.66483123,116650.0,116640.0,1.42434463]
[1752207675361,0.66483123,116650.0,116640.0,1.25291823]
[1752207675862,0.66483123,116650.0,116640.0,1.42434463]
[1752207676160,0.9050126,116650.0,116640.0,0.83698463]
[1752207676855,0.9050126,116650.0,116640.0,1.42430463]
[1752207677056,0.9050126,116650.0,116640.0,1.25287823]
[1752207677361,0.9050126,116650.0,116640.0,0.66435823]
[1752207677563,0.66483123,116650.0,116640.0,0.66435823]
[1752207677762,0.66483123,116650.0,116640.0,1.25167823]
[1752207678364,0.66483123,116650.0,116640.0,0.66435823]
[1752207679065,0.66483123,116650.0,116640.0,1.25163823]
[1752207680168,0.9050126,116650.0,116640.0,1.25163823]
[1752207680366,0.9050126,116650.0,116640.0,0.66435823]
[1752207680566,0.9050126,116650.0,116640.0,1.25163823]
[1752207681965,0.66483123,116650.0,116640.0,1.42306463]
[1752207682164,0.66483123,116650.0,116640.0,1.25163823]
[1752207685370,0.66483123,116650.0,116640.0,1.42306473]
[1752207685570,0.63253123,116650.0,116640.0,1.42306473]
[1752207685774,0.18984123,116650.0,116640.0,2.0240461]
[1752207685966,0.18984123,116650.0,116640.0,0.26222584]
[1752207685967,0.8434526,116650.0,116640.0,0.26222584]
[1752207686166,0.8440926,116650.0,116640.0,0.39217686]
[1752207686366,0.9073926,116650.0,116640.0,0.97941686]
[1752207686969,0.9073926,116650.0,116640.0,0.69689742]
[1752207687561,0.9073926,116650.0,116640.0,0.69685742]
[1752207687770,0.9073926,116650.0,116640.0,0.67529742]
[1752207688069,0.9083926,116650.0,116640.0,0.08809742]
[1752207688372,0.9083926,116650.0,116640.0,0.07055153]
[1752207688373,1.14857397,116650.0,116640.0,0.07055153]
[1752207688572,1.14857397,116650.0,116640.0,0.001]
[1752207688873,0.171441,116630.0,116620.0,0.68351035]
[1752207689067,0.171441,116630.0,116620.0,0.09631035]
[1752207689068,0.8434818,116630.0,116620.0,0.09631035]
[1752207689371,0.9066618,116630.0,116620.0,0.63738]
[1752207689973,0.9066618,116630.0,116620.0,0.63838]
[1752207690372,1.2674618,116630.0,116620.0,0.63838]
[1752207690572,1.2674618,116630.0,116620.0,0.63938]
[1752207691174,1.2674618,116630.0,116620.0,0.02168]
[1752207691374,1.2674618,116630.0,116620.0,0.05118]
[1752207692276,1.2674618,116630.0,116620.0,0.05018]
[1752207693175,0.2247257,116620.0,116610.0,0.02906823]
[1752207693375,1.14787787,116620.0,116610.0,0.6864188]
[1752207693667,2.32227787,116620.0,116610.0,0.01968]
[1752207693873,2.0827365,116620.0,116610.0,0.29036137]
[1752207694074,1.84255513,116620.0,116610.0,0.29036137]
[1752207694271,2.0827365,116620.0,116610.0,0.29136137]
[1752207695071,2.0827365,116620.0,116610.0,0.29236137]
[1752207695272,2.0827365,116620.0,116610.0,0.30178972]
[1752207696979,2.08288118,116620.0,116610.0,0.06160835]
[1752207698376,2.08288118,116620.0,116610.0,0.05218]
[1752207699081,2.08288118,116620.0,116610.0,0.0616697]
[1752207700381,2.08288118,116620.0,116610.0,0.0311697]
[1752207700872,2.08288118,116620.0,116610.0,0.0616697]
[1752207701680,0.66815513,116620.0,116610.0,0.47346615]
[1752207701877,0.27515513,116620.0,116610.0,0.50456615]
[1752207702181,0.27515513,116620.0,116610.0,0.53556615]
[1752207702482,0.2253657,116620.0,116610.0,0.53556615]
[1752207702683,0.2247257,116620.0,116610.0,0.53556615]
[1752207702984,0.2247257,116620.0,116610.0,0.60544692]
[1752207705484,0.5855257,116620.0,116610.0,0.60544692]
[1752207705684,0.2254057,116620.0,116610.0,0.60544692]
[1752207705983,0.24264783,116620.0,116610.0,0.60544692]
[1752207706579,0.60344783,116620.0,116610.0,0.60544692]
[1752207706785,0.1714557,116620.0,116610.0,1.20657297]
[1752207707392,0.6712455,116630.0,116620.0,0.1714557]
[1752207707582,0.68980867,116630.0,116620.0,0.54471039]
[1752207707784,0.68980867,116630.0,116620.0,1.13187039]
[1752207707989,0.3110855,116630.0,116620.0,1.13187039]
[1752207708288,0.3110855,116630.0,116620.0,1.49267039]
[1752207708481,0.3104455,116630.0,116620.0,1.49267039]
[1752207711390,0.32836718,116630.0,116620.0,1.49267039]
[1752207713190,0.32836718,116630.0,116620.0,1.13187039]
[1752207715993,0.32900718,116630.0,116620.0,1.13187039]
[1752207716194,0.93013323,116630.0,116620.0,0.68770864]
[1752207716394,0.99303323,116630.0,116620.0,0.68770864]
[1752207716695,0.99303323,116630.0,116620.0,0.65540864]
[1752207716896,0.99303323,116630.0,116620.0,0.06832864]
[1752207717097,0.99303323,116630.0,116620.0,0.62490864]
[1752207717290,0.99303323,116630.0,116620.0,0.03782864]
[1752207717491,0.99303323,116630.0,116620.0,0.62490864]
[1752207719592,0.99303323,116630.0,116620.0,0.03782864]
[1752207719994,0.99303323,116630.0,116620.0,0.01814864]
[1752207720200,2.16711323,116630.0,116620.0,0.01814864]
[1752207724606,2.16711323,116630.0,116620.0,0.18960434]
[1752207726209,2.16711323,116630.0,116620.0,0.01814864]
[1752207726909,2.16711323,116630.0,116620.0,0.18960434]
[1752207728110,2.16711323,116630.0,116620.0,0.01814864]
[1752207730313,2.16711323,116630.0,116620.0,0.18960434]
[1752207730814,2.16711323,116630.0,116620.0,0.01814864]
[1752207733417,0.2238257,116620.0,116610.0,0.07937047]
[1752207733714,0.2238404,116610.0,116600.0,0.93168454]
[1752207733916,0.66596208,116610.0,116600.0,0.93168454]
[1752207734408,0.66596208,116610.0,116600.0,0.34472454]
[1752207734614,0.66660208,116610.0,116600.0,0.84268419]
[1752207735712,0.66660208,116610.0,116600.0,0.84768419]
[1752207736316,0.66660208,116610.0,116600.0,0.85704384]
[1752207736915,0.66660208,116610.0,116600.0,0.92567564]
[1752207737114,0.66660208,116610.0,116600.0,0.72399664]
[1752207739417,0.66660208,116610.0,116600.0,0.72395664]
[1752207741316,0.66660208,116610.0,116600.0,0.13703664]
[1752207741623,0.90692813,116610.0,116600.0,0.13703664]
[1752207742121,0.90692813,116610.0,116600.0,0.10555664]
[1752207742715,0.90692813,116610.0,116600.0,0.09619699]
[1752207743724,2.08076813,116610.0,116600.0,0.09619699]
[1752207744319,2.08076813,116610.0,116600.0,0.10576022]
[1752207745124,2.08076813,116610.0,116600.0,0.09619699]
[1752207745320,2.08076813,116610.0,116600.0,0.07534699]
[1752207745526,2.08076813,116610.0,116600.0,0.07434699]
[1752207745725,2.08076813,116610.0,116600.0,0.07234699]
[1752207756435,2.32109418,116610.0,116600.0,0.07234699]
[1752207756827,2.08076813,116610.0,116600.0,0.07234699]
[1752207760939,2.08085059,116610.0,116600.0,0.07234699]
[1752207762340,1.84044208,116610.0,116600.0,0.07234699]
[1752207762530,2.08085059,116610.0,116600.0,0.07234699]
[1752207766133,2.0809467,116610.0,116600.0,0.07234699]
[1752207774346,2.0483467,116610.0,116600.0,0.60259401]
[1752207774645,2.0483467,116610.0,116600.0,0.4263855]
[1752207775352,2.0483467,116610.0,116600.0,0.18597699]
[1752207775545,2.0483467,116610.0,116600.0,0.3642355]
[1752207775745,2.0803467,116610.0,116600.0,0.3642355]
[1752207775945,2.0803467,116610.0,116600.0,0.12382699]
[1752207776142,2.08035549,116610.0,116600.0,0.3448555]
[1752207776446,2.08035549,116610.0,116600.0,0.10444699]
[1752207776749,2.08035549,116610.0,116600.0,0.07234699]
[1752207778248,2.08035549,116610.0,116600.0,0.3127555]
[1752207779051,2.0803296,116610.0,116600.0,0.07234699]
[1752207782247,1.25278698,116610.0,116600.0,0.09172699]
[1752207782550,1.25278698,116610.0,116600.0,0.12182699]
[1752207783053,1.25278698,116610.0,116600.0,0.15187699]
[1752207783054,1.4611696,116610.0,116600.0,0.15187699]
[1752207785351,1.22078698,116610.0,116600.0,0.15187699]
[1752207785551,1.4611696,116610.0,116600.0,0.12182699]
[1752207786151,1.4611696,116610.0,116600.0,0.15187699]
[1752207786852,0.8744896,116610.0,116600.0,0.15187699]
[1752207787052,1.4611296,116610.0,116600.0,0.15187699]
[1752207787352,1.22074698,116610.0,116600.0,0.32336209]
[1752207787650,0.60330698,116610.0,116600.0,0.39225961]
[1752207787851,0.60330698,116610.0,116600.0,0.15187699]
[1752207788048,0.63370698,116610.0,116600.0,0.15187699]
[1752207790755,0.63370698,116610.0,116600.0,0.32336199]
[1752207791256,0.63370698,116610.0,116600.0,0.35596199]
[1752207791649,0.27290698,116610.0,116600.0,0.35596199]
[1752207791853,0.63306698,116610.0,116600.0,0.35596199]
[1752207792053,0.63370698,116610.0,116600.0,0.35596199]
[1752207793661,0.63370698,116610.0,116600.0,0.59634461]
[1752207793957,0.60330698,116610.0,116600.0,0.59634461]
[1752207797557,0.60330698,116610.0,116600.0,0.18447699]
[1752207797757,0.63560698,116610.0,116600.0,0.42485961]
[1752207797958,0.63560698,116610.0,116600.0,0.18447699]
[1752207799058,0.63560698,116610.0,116600.0,0.42485961]
[1752207799760,0.63560698,116610.0,116600.0,0.18447699]
[1752207800857,0.87596064,116610.0,116600.0,0.42483065]
[1752207801560,0.87596064,116610.0,116600.0,0.39223065]
[1752207803262,0.90646064,116610.0,116600.0,0.39223065]
[1752207810568,0.90646064,116610.0,116600.0,0.36213065]
[1752207816874,0.66610698,116610.0,116600.0,0.36213065]
[1752207817074,0.90646064,116610.0,116600.0,0.36213065]
[1752207818977,0.66610698,116610.0,116600.0,0.36213065]
[1752207819181,0.90646064,116610.0,116600.0,0.12177699]
[1752207819476,0.90646064,116610.0,116600.0,0.36213065]
[1752207825970,0.24250698,116610.0,116600.0,1.01432307]
[1752207826179,0.24186698,116610.0,116600.0,0.83716941]
[1752207826882,0.24186698,116610.0,116600.0,1.24409976]
[1752207827182,0.24186698,116610.0,116600.0,1.48445342]
[1752207827578,0.24186698,116610.0,116600.0,1.24409976]
[1752207833782,0.24186698,116610.0,116600.0,1.19796941]
[1752207835783,0.18949698,116610.0,116600.0,1.19796941]
[1752207835983,0.21769698,116610.0,116600.0,0.83716941]
[1752207838483,0.21769698,116610.0,116600.0,1.19796941]
[1752207838687,0.18949698,116610.0,116600.0,1.19796941]
[1752207838885,0.18949698,116610.0,116600.0,1.48445342]
[1752207839189,0.2143336,116620.0,116610.0,0.2198602]
[1752207839383,0.18939987,116620.0,116610.0,1.84116402]
[1752207839582,0.1714555,116620.0,116610.0,1.88729437]
[1752207840676,0.3367058,116630.0,116620.0,0.2198455]
[1752207840880,0.35528853,116630.0,116620.0,1.35251306]
[1752207841080,0.35464853,116630.0,116620.0,1.38431306]
[1752207841787,0.35528853,116630.0,116620.0,1.1439594]
[1752207841984,0.19003433,116630.0,116620.0,1.38431306]
[1752207842283,0.18939433,116630.0,116620.0,1.38431306]
[1752207842488,0.1734516,116630.0,116620.0,1.38431306]
[1752207842886,0.1744516,116630.0,116620.0,1.38431306]
[1752207844587,0.003,116630.0,116620.0,1.38431306]
[1752207844777,0.1744404,116630.0,116620.0,1.38431306]
[1752207845180,0.003,116630.0,116620.0,1.43044341]
[1752207846889,0.002,116630.0,116620.0,1.43044341]
[1752207847090,0.287852,116640.0,116630.0,0.2198304]
[1752207847290,0.316692,116640.0,116630.0,1.67737772]
[1752207847589,0.316052,116640.0,116630.0,1.67737772]
[1752207847786,0.316052,116640.0,116630.0,1.70867772]
[1752207848090,0.2449925,116640.0,116630.0,1.70867772]
[1752207848487,0.2142925,116640.0,116630.0,1.70867772]
[1752207848992,0.2172925,116640.0,116630.0,1.70867772]
[1752207850990,0.2172925,116640.0,116630.0,1.2279704]
[1752207851190,0.2172925,116640.0,116630.0,1.70867772]
[1752207852292,0.2477925,116640.0,116630.0,1.70867772]
[1752207856592,0.190568,116650.0,116630.0,1.83725182]
[1752207856794,0.1714257,116640.0,116630.0,1.3565445]
[1752207856989,0.3711614,116650.0,116640.0,0.1900457]
[1752207857195,0.38975812,116650.0,116640.0,0.23765018]
[1752207857895,0.38975812,116650.0,116640.0,0.7183575]
[1752207858094,0.39175812,116650.0,116640.0,0.7183575]
[1752207858394,0.39175997,116650.0,116640.0,0.7183575]
[1752207858794,0.38975997,116650.0,116640.0,0.72728592]
[1752207859095,0.39175997,116650.0,116640.0,0.72728592]
[1752207859283,0.39375997,116650.0,116640.0,0.72728592]
[1752207860496,0.3758414,116650.0,116640.0,0.72728592]
[1752207867798,0.35091344,116650.0,116640.0,0.72728592]
[1752207869598,0.35091344,116650.0,116640.0,1.31308592]
[1752207869999,0.71171344,116650.0,116640.0,0.2465786]
[1752207870200,0.35091344,116650.0,116640.0,0.72728592]
[1752207870397,0.35091344,116650.0,116640.0,1.31304592]
[1752207871297,0.71171344,116650.0,116640.0,1.31304592]
[1752207871602,0.35091344,116650.0,116640.0,1.31304592]
[1752207871799,0.71171344,116650.0,116640.0,1.31304592]
[1752207871995,0.35091344,116650.0,116640.0,1.31304592]
[1752207872502,0.71171344,116650.0,116640.0,1.31304592]
[1752207873002,0.35091344,116650.0,116640.0,0.72728592]
[1752207873202,0.71171344,116650.0,116640.0,1.31304592]
[1752207873500,0.35091344,116650.0,116640.0,1.31304592]
[1752207875102,0.30804904,116650.0,116640.0,1.31304592]
[1752207875295,0.30804904,116650.0,116640.0,1.34504592]
[1752207875296,0.30736904,116650.0,116640.0,1.34504592]
[1752207876804,0.30736904,116650.0,116640.0,1.39117627]
[1752207880904,0.27556904,116650.0,116640.0,1.39117627]
[1752207884201,0.27556904,116650.0,116640.0,1.34504592]
[1752207884402,0.27556904,116650.0,116640.0,1.42137627]
[1752207886708,0.27556904,116650.0,116640.0,1.37524592]
[1752207887612,0.10415804,116650.0,116640.0,1.37524592]
[1752207887807,0.27556904,116650.0,116640.0,1.37524592]
[1752207888711,0.255641,116650.0,116640.0,1.37524592]
[1752207888907,0.257641,116650.0,116640.0,1.37524592]
[1752207889709,0.256641,116650.0,116640.0,1.37524592]
[1752207890312,0.2735992,116650.0,116640.0,1.37524592]
[1752207890511,0.2735992,116650.0,116640.0,1.42142543]
[1752207891817,0.1021882,116650.0,116640.0,1.42142543]
[1752207892015,0.2735992,116650.0,116640.0,1.42142543]
[1752207892319,0.0739882,116650.0,116640.0,1.42142543]
[1752207892512,0.0219582,116650.0,116640.0,1.66177909]
[1752207894619,0.0219582,116650.0,116640.0,1.97639958]
[1752207895012,0.0219582,116650.0,116640.0,1.61559958]
[1752207895217,0.0219582,116650.0,116640.0,1.97639958]
[1752207895421,0.0219582,116650.0,116640.0,2.02258146]
[1752207895820,0.02195503,116650.0,116640.0,2.02258469]
[1752207896119,0.003,116650.0,116640.0,1.97639958]
[1752207896521,0.002,116650.0,116640.0,1.97739958]
[1752207897724,0.002,116650.0,116640.0,2.03897226]
[1752207898223,0.002,116650.0,116640.0,1.97739958]
[1752207900524,0.173411,116650.0,116640.0,1.97739958]
[1752207901630,0.002,116650.0,116640.0,1.97739958]
[1752207904325,0.002,116650.0,116640.0,2.03897226]
[1752207905130,0.002,116650.0,116640.0,1.97739958]
[1752207910736,0.2622411,116660.0,116650.0,0.2172211]
[1752207911034,0.28008783,116660.0,116650.0,0.74409569]
[1752207911437,0.10868673,116660.0,116650.0,0.77649569]
[1752207911732,0.28008313,116660.0,116650.0,0.77649569]
[1752207911928,0.28076313,116660.0,116650.0,0.77649569]
[1752207912124,0.28176313,116660.0,116650.0,0.77649569]
[1752207912435,0.28276313,116660.0,116650.0,0.77649569]
[1752207913732,0.28176313,116660.0,116650.0,0.77649569]
[1752207914734,0.28076313,116660.0,116650.0,0.77749569]
[1752207916342,0.29867313,116660.0,116650.0,0.77749569]
[1752207921336,0.5750231,116680.0,116670.0,0.1713817]
[1752207921547,0.65796832,116680.0,116670.0,1.28325902]
[1752207921843,0.65796832,116680.0,116670.0,1.04290536]
[1752207922044,0.65796832,116680.0,116670.0,1.28325902]
[1752207922243,0.65796832,116680.0,116670.0,1.04290536]
[1752207922544,0.65996832,116680.0,116670.0,1.04290536]
[1752207922942,0.65996832,116680.0,116670.0,1.28325902]
[1752207923339,0.29916832,116680.0,116670.0,1.28325902]
[1752207923643,0.29916832,116680.0,116670.0,1.28369902]
[1752207924839,0.29916832,116680.0,116670.0,1.35377741]
[1752207925045,0.29916832,116680.0,116670.0,1.11342375]
[1752207925247,0.29960832,116680.0,116670.0,1.11342375]
[1752207925744,0.30160832,116680.0,116670.0,1.11342375]
[1752207926648,0.30160832,116680.0,116670.0,1.11334375]
[1752207927141,0.54196198,116680.0,116670.0,1.11334375]
[1752207928446,0.90276198,116680.0,116670.0,1.11334375]
[1752207928949,0.90276198,116680.0,116670.0,0.52806375]
[1752207929146,0.90276198,116680.0,116670.0,1.11326375]
[1752207929645,0.90276198,116680.0,116670.0,0.08852839]
[1752207929848,2.9752853,116680.0,116670.0,0.01702329]
[1752207930048,0.1898411,116650.0,116640.0,0.04788187]
[1752207930349,0.9395711,116650.0,116640.0,0.23717767]
[1752207930537,1.21142476,116650.0,116640.0,0.09466187]
[1752207930738,0.85062476,116650.0,116640.0,0.5156238]
[1752207930950,0.9710711,116650.0,116640.0,0.27527014]
[1752207931150,1.21127733,116650.0,116640.0,0.10384434]
[1752207931448,1.21127733,116650.0,116640.0,0.13468616]
[1752207931650,1.21127733,116650.0,116640.0,0.72132616]
[1752207931856,1.21127733,116650.0,116640.0,0.67515889]
[1752207932342,1.21127733,116650.0,116640.0,0.67815889]
[1752207932744,1.21127733,116650.0,116640.0,0.73349624]
[1752207933250,1.24285734,116650.0,116640.0,0.73397624]
[1752207933453,1.24485734,116650.0,116640.0,0.72280616]
[1752207933652,1.24685734,116650.0,116640.0,0.04836187]
[1752207933951,1.26452793,116650.0,116640.0,0.0017146]
[1752207934750,1.0243217,116650.0,116640.0,0.0017146]
[1752207934945,1.26452793,116650.0,116640.0,0.0017146]
[1752207935148,1.24685734,116650.0,116640.0,0.0017146]
[1752207935350,1.24685734,116650.0,116640.0,0.03245496]
[1752207935850,1.24685734,116650.0,116640.0,0.0017146]
[1752207936046,1.26454517,116650.0,116640.0,0.0017146]
[1752207936450,1.26554517,116650.0,116640.0,0.0017146]
[1752207936650,1.43700917,116650.0,116640.0,0.0017146]
[1752207938451,1.43900917,116650.0,116640.0,0.0017146]
[1752207941249,1.26754517,116650.0,116640.0,0.0017146]
[1752207941553,1.02733894,116650.0,116640.0,0.25979083]
[1752207941947,1.02733894,116650.0,116640.0,0.0195846]
[1752207945257,1.02733894,116650.0,116640.0,0.0017146]
[1752207945755,1.26754517,116650.0,116640.0,0.0017146]
[1752207946348,1.02733894,116650.0,116640.0,0.0017146]
[1752207949059,1.26754517,116650.0,116640.0,0.0017146]
[1752207951257,1.26754517,116650.0,116640.0,0.24192083]
[1752207951455,1.02733894,116650.0,116640.0,0.24192083]
[1752207952449,1.02733894,116650.0,116640.0,0.0017146]
[1752207958775,1.26754351,116650.0,116640.0,0.24191917]
[1752207960274,1.26766208,116650.0,116640.0,0.24191917]
[1752207960471,0.99595751,116650.0,116640.0,0.67153964]
[1752207960676,0.99595751,116650.0,116640.0,0.70090964]
[1752207960974,1.23616208,116650.0,116640.0,0.76620964]
[1752207961871,0.99595751,116650.0,116640.0,0.76620964]
[1752207963972,0.97815111,116650.0,116640.0,0.76620964]
[1752207964175,0.99596763,116650.0,116640.0,0.76620964]
[1752207964574,0.27436763,116650.0,116640.0,0.76620964]
[1752207964778,0.63468762,116650.0,116640.0,0.76620964]
[1752207968079,0.63512762,116650.0,116640.0,0.76620964]
[1752207969080,0.6173111,116650.0,116640.0,0.76620964]
[1752207969280,0.63509374,116650.0,116640.0,0.76620964]
[1752207970883,0.66659374,116650.0,116640.0,0.76620964]
[1752207974287,0.66658378,116650.0,116640.0,0.76620964]
[1752207975878,0.90678835,116650.0,116640.0,0.76620964]
[1752207976291,0.90678835,116650.0,116640.0,0.52948374]
[1752207978191,0.90678835,116650.0,116640.0,0.0490746]
[1752207978386,1.14699292,116650.0,116640.0,0.0017146]
[1752207978582,1.14699292,116650.0,116640.0,1e-07]
[1752207978784,0.2179859,116640.0,116630.0,0.06835261]
[1752207979087,0.2180153,116620.0,116610.0,0.95117291]
[1752207979285,0.83679255,116620.0,116610.0,0.36505291]
[1752207979487,0.89919255,116620.0,116610.0,0.33325291]
[1752207980788,0.65898798,116620.0,116610.0,0.09304834]
[1752207981090,0.65898798,116620.0,116610.0,0.04568]
[1752207981291,2.07144192,116620.0,116610.0,0.02676217]
[1752207981486,0.18902,116610.0,116600.0,0.73358129]
[1752207981685,0.62950268,116610.0,116600.0,0.73358129]
[1752207981886,0.62950268,116610.0,116600.0,1.09923159]
[1752207982086,0.62950268,116610.0,116600.0,0.92774689]
[1752207982288,0.62950268,116610.0,116600.0,0.34170689]
[1752207982890,0.62950268,116610.0,116600.0,0.10137295]
[1752207983186,0.62998269,116610.0,116600.0,0.19671027]
[1752207984084,0.61221001,116610.0,116600.0,0.19671027]
[1752207985594,0.61221001,116610.0,116600.0,0.20561408]
[1752207986992,0.61221001,116610.0,116600.0,0.44594802]
[1752207987293,0.61221001,116610.0,116600.0,0.44638802]
[1752207987893,0.61221001,116610.0,116600.0,0.17934408]
[1752207988098,0.61221001,116610.0,116600.0,0.20561408]
[1752207988398,0.64491001,116610.0,116600.0,0.20561408]
[1752207988893,0.64591001,116610.0,116600.0,0.44594802]
[1752207989399,0.64691001,116610.0,116600.0,0.44594802]
[1752207989593,0.64591001,116610.0,116600.0,0.44594802]
[1752207989799,0.64691001,116610.0,116600.0,0.44594802]
[1752207990191,0.64691001,116610.0,116600.0,0.61743272]
[1752207990494,0.64691001,116610.0,116600.0,0.37709878]
[1752207991899,0.64691001,116610.0,116600.0,0.61743272]
[1752207993098,0.64691001,116610.0,116600.0,0.61787272]
[1752207995498,0.64691001,116610.0,116600.0,0.44638802]
[1752207995698,0.64691001,116610.0,116600.0,0.61787272]
[1752207997103,0.64691001,116610.0,116600.0,0.61777272]
[1752208002799,0.88725422,116610.0,116600.0,0.8581272]
[1752208003001,0.49375422,116610.0,116600.0,0.8581272]
[1752208003705,0.85455422,116610.0,116600.0,0.8581272]
[1752208003907,0.61421001,116610.0,116600.0,0.8581272]
[1752208004102,0.85455422,116610.0,116600.0,0.8581272]
[1752208004301,0.49375422,116610.0,116600.0,0.8581272]
[1752208005106,0.85455422,116610.0,116600.0,0.8581272]
[1752208005510,0.49375422,116610.0,116600.0,0.8581272]
[1752208006306,0.49375422,116610.0,116600.0,0.90429554]
[1752208006506,0.85455422,116610.0,116600.0,0.90429554]
[1752208007102,0.25341001,116610.0,116600.0,0.90429554]
[1752208007308,0.25293,116610.0,116600.0,0.90429554]
[1752208007710,0.22003,116610.0,116600.0,0.90429554]
[1752208007911,0.1734699,116610.0,116600.0,1.73031975]
[1752208008108,0.1734699,116610.0,116600.0,2.09111975]
[1752208008306,0.002,116610.0,116600.0,2.04495141]
[1752208008507,0.2583872,116630.0,116620.0,0.2161252]
[1752208008713,0.27620522,116630.0,116620.0,1.28249362]
[1752208008912,0.23334442,116630.0,116620.0,1.58487783]
[1752208009218,0.23334442,116630.0,116620.0,1.63106166]
[1752208009408,0.06189802,116630.0,116620.0,1.75151745]
[1752208009609,0.01781802,116630.0,116620.0,1.99186166]
[1752208010017,0.3012333,116640.0,116630.0,0.1894005]
[1752208010218,0.31948945,116640.0,116630.0,0.75839892]
[1752208010419,0.31948945,116640.0,116630.0,0.75883892]
[1752208010719,0.31948945,116640.0,116630.0,0.75583892]
[1752208011018,0.31948945,116640.0,116630.0,0.51533119]
[1752208011313,0.32048945,116640.0,116630.0,0.51533119]
[1752208011519,0.32148945,116640.0,116630.0,0.51533119]
[1752208013923,0.32141862,116640.0,116630.0,0.51533119]
[1752208018722,0.23569122,116640.0,116630.0,0.51533119]
[1752208019027,0.23525122,116640.0,116630.0,0.51533119]
[1752208020331,0.2176059,116640.0,116630.0,0.51533119]
[1752208023936,0.23531784,116640.0,116630.0,0.51533119]
[1752208024935,0.23531784,116640.0,116630.0,1.10089119]
[1752208025737,0.26631784,116640.0,116630.0,1.10089119]
[1752208026835,0.26631784,116640.0,116630.0,1.04229129]
[1752208027035,0.29641784,116640.0,116630.0,1.04229129]
[1752208027336,0.29685784,116640.0,116630.0,1.04229129]
[1752208028629,0.65765784,116640.0,116630.0,1.04229129]
[1752208032138,0.29685784,116640.0,116630.0,1.04229129]
[1752208032640,0.65765784,116640.0,116630.0,1.04229129]
[1752208032834,0.29685784,116640.0,116630.0,1.04229129]
[1752208033943,0.65765784,116640.0,116630.0,1.04229129]
[1752208036143,0.65765784,116640.0,116630.0,1.07289129]
[1752208041646,0.62755784,116640.0,116630.0,1.07289129]
[1752208041846,0.62754997,116640.0,116630.0,1.10499129]
[1752208042848,0.62754997,116640.0,116630.0,1.10500882]
[1752208044150,0.86774819,116640.0,116630.0,1.10500882]
[1752208046944,0.89874819,116640.0,116630.0,1.10500882]